lending/lending_fUSD_20240710
["ID","MTS","AMOUNT","RATE_DAILY","PERIOD"]
[331664364,1720611031835,-306.74,0.00013131,2]
[331664365,1720611031844,-156.02718388,0.00013472,2]
[331664366,1720611031854,-891.5368913,0.00013472,2]
[331664372,1720611037635,-2147.83147626,0.00013472,2]
[331664373,1720611037646,-959.88026652,0.00013574,2]
[331664374,1720611037656,-200.0,0.00013699,2]
[331664375,1720611037666,-250.0,0.00013699,2]
[331664377,1720611037676,-284.53,0.00013699,2]
[331664378,1720611037686,-2500.0,0.00013705,2]
[331664379,1720611037696,-500.0,0.00013751,2]
[331664380,1720611037706,-500.0,0.00013751,2]
[331664381,1720611037716,-500.0,0.00013751,2]
[331664382,1720611037726,-516.24,0.00013751,2]
[331664383,1720611037736,-500.0,0.00013751,2]
[331664384,1720611037746,-500.0,0.00013751,2]
[331664385,1720611037755,-500.0,0.00013751,2]
[331664386,1720611037765,-562.26,0.00013751,2]
[331664387,1720611037774,-500.0,0.00013751,2]
[331664388,1720611037784,-500.0,0.00013751,2]
[331664389,1720611037794,-500.0,0.00013751,2]
[331664390,1720611037804,-500.0,0.00013751,2]
[331664391,1720611037814,-500.0,0.00013751,2]
[331664392,1720611037823,-500.0,0.00013751,2]
[331664393,1720611037833,-500.0,0.00013751,2]
[331664394,1720611037843,-500.0,0.00013751,2]
[331664395,1720611037853,-500.0,0.00013751,2]
[331664396,1720611037863,-500.0,0.00013751,2]
[331664397,1720611037872,-500.0,0.00013751,2]
[331664398,1720611037882,-500.0,0.00013751,2]
[331664399,1720611037892,-500.0,0.00013751,2]
[331664400,1720611037901,-500.0,0.00013751,2]
[331664401,1720611037911,-500.0,0.00013751,2]
[331664402,1720611037920,-500.0,0.00013751,2]
[331664403,1720611037930,-556.92,0.00013751,2]
[331664404,1720611037940,-500.0,0.00013751,2]
[331664405,1720611037949,-500.0,0.00013751,2]
[331664406,1720611037959,-500.0,0.00013751,2]
[331664407,1720611037968,-500.0,0.00013751,2]
[331664408,1720611037978,-568.81,0.00013751,2]
[331664409,1720611037988,-500.0,0.00013751,2]
[331664410,1720611037997,-500.0,0.00013751,2]
[331664411,1720611038007,-584.13,0.00013751,2]
[331664412,1720611038016,-500.0,0.00013751,2]
[331664413,1720611038026,-500.0,0.00013751,2]
[331664414,1720611038036,-500.0,0.00013751,2]
[331664415,1720611038046,-500.0,0.00013751,2]
[331664416,1720611038056,-500.0,0.00013751,2]
[331664417,1720611038065,-500.0,0.00013751,2]
[331664418,1720611038075,-574.34,0.00013751,2]
[331664419,1720611038085,-500.0,0.00013751,2]
[331664420,1720611038095,-662.54,0.00013751,2]
[331664421,1720611038104,-500.0,0.00013751,2]
[331664422,1720611038114,-500.0,0.00013751,2]
[331664423,1720611038123,-500.0,0.00013751,2]
[331664424,1720611038134,-782.97,0.00013751,2]
[331664425,1720611038144,-500.0,0.00013751,2]
[331664426,1720611038154,-531.99,0.00013751,2]
[331664427,1720611038163,-500.0,0.00013751,2]
[331664428,1720611038174,-500.0,0.00013751,2]
[331664429,1720611038184,-603.11,0.00013751,2]
[331664430,1720611038193,-710.14,0.00013751,2]
[331664431,1720611038203,-500.0,0.00013751,2]
[331664432,1720611038213,-500.0,0.00013751,2]
[331664433,1720611038223,-500.0,0.00013751,2]
[331664434,1720611038233,-500.0,0.00013751,2]
[331664435,1720611038243,-500.0,0.00013751,2]
[331664436,1720611038252,-562.52,0.00013751,2]
[331664437,1720611038262,-500.0,0.00013752,2]
[331664438,1720611038271,-500.0,0.00013752,2]
[331664439,1720611038281,-500.0,0.00013752,2]
[331664440,1720611038290,-500.0,0.00013752,2]
[331664441,1720611038301,-500.0,0.00013752,2]
[331664442,1720611038311,-500.0,0.00013752,2]
[331664443,1720611038322,-500.0,0.00013752,2]
[331664444,1720611038332,-193.54661277,0.00013752,2]
[331664445,1720611038352,-306.45338723,0.00013752,2]
[331664446,1720611038362,-39.79933277,0.00013752,2]
[331664447,1720611038374,-285.4,0.00013752,2]
[331664448,1720611038394,-174.80066723,0.00013752,2]
[331664449,1720611038404,-500.0,0.00013752,2]
[331664450,1720611038414,-174.82047917,0.00013752,2]
[331664451,1720611038456,-325.17952083,0.00013752,2]
[331664452,1720611038465,-475.64749064,0.00013752,2]
[331664453,1720611038475,-500.0,0.00013752,2]
[331664454,1720611038486,-500.0,0.00013752,2]
[331664455,1720611038495,-500.0,0.00013752,2]
[331664456,1720611038506,-500.0,0.00013752,2]
[331664457,1720611038516,-500.0,0.00013752,2]
[331664458,1720611038526,-500.0,0.00013752,2]
[331664459,1720611038536,-500.0,0.00013752,2]
[331664460,1720611038546,-500.0,0.00013752,2]
[331664461,1720611038556,-500.0,0.00013752,2]
[331664462,1720611038566,-500.0,0.00013752,2]
[331664463,1720611038575,-349.88827706,0.00013752,2]
[331664464,1720611038586,-500.0,0.00013752,2]
[331664465,1720611038596,-500.0,0.00013752,2]
[331664466,1720611038606,-500.0,0.00013752,2]
[331664467,1720611038615,-861.69,0.00013752,2]
[331664468,1720611038625,-500.0,0.00013752,2]
[331664469,1720611038636,-500.0,0.00013752,2]
[331664470,1720611038648,-500.0,0.00013752,2]
[331664471,1720611038658,-500.0,0.00013752,2]
[331664472,1720611038667,-500.0,0.00013752,2]
[331664473,1720611038677,-500.0,0.00013752,2]
[331664474,1720611038687,-751.44225849,0.00013759,2]
[331664475,1720611038698,-171.29269953,0.0001376,2]
[331664476,1720611038708,-1627.54210538,0.0001379,2]
[331664477,1720611038718,-1627.54210534,0.0001379,2]
[331664478,1720611038727,-1627.54210534,0.0001379,2]
[331664479,1720611038738,-1627.54210534,0.0001379,2]
[331664480,1720611038749,-1627.54210534,0.00013792,2]
[331664481,1720611038759,-1015.15701428,0.00013799,2]
[331664482,1720611038768,-1015.15701426,0.00013799,2]
[331664483,1720611038778,-1015.15701426,0.00013799,2]
[331664484,1720611038788,-1015.15701426,0.00013799,2]
[331664485,1720611038798,-1015.15701426,0.00013799,2]
[331664486,1720611038810,-358.72880849,0.00013802,2]
[331664487,1720611038820,-500.0,0.00013805,2]
[331664488,1720611038829,-500.0,0.00013805,2]
[331664489,1720611038840,-366.54844657,0.00013805,2]
[331664490,1720611038850,-500.0,0.00013805,2]
[331664491,1720611038860,-500.0,0.00013805,2]
[331664492,1720611038870,-500.0,0.00013805,2]
[331664493,1720611038879,-500.0,0.00013805,2]
[331664494,1720611038890,-500.0,0.00013805,2]
[331664495,1720611038900,-500.0,0.00013805,2]
[331664496,1720611038909,-221.40933599,0.00013805,2]
[331664503,1720611040125,-358.72880849,0.00013802,2]
[331664504,1720611040135,-278.59066401,0.00013805,2]
[331664505,1720611040145,-500.0,0.00013805,2]
[331664506,1720611040155,-500.0,0.00013805,2]
[331664507,1720611040164,-500.0,0.00013805,2]
[331664508,1720611040174,-500.0,0.00013805,2]
[331664509,1720611040184,-500.0,0.00013805,2]
[331664510,1720611040193,-500.0,0.00013805,2]
[331664511,1720611040202,-500.0,0.00013805,2]
[331664512,1720611040212,-500.0,0.00013805,2]
[331664513,1720611040221,-500.0,0.00013805,2]
[331664514,1720611040231,-500.0,0.00013805,2]
[331664515,1720611040240,-500.0,0.00013805,2]
[331664516,1720611040250,-185.22,0.00013805,2]
[331664517,1720611040260,-500.0,0.00013805,2]
[331664518,1720611040269,-500.0,0.00013805,2]
[331664519,1720611040279,-733.74,0.00013805,2]
[331664520,1720611040289,-500.0,0.00013805,2]
[331664521,1720611040299,-500.0,0.00013805,2]
[331664523,1720611040309,-500.0,0.00013805,2]
[331664525,1720611040319,-500.0,0.00013805,2]
[331664527,1720611040329,-500.0,0.00013805,2]
[331664529,1720611040339,-500.0,0.00013805,2]
[331664531,1720611040349,-500.0,0.00013805,2]
[331664534,1720611040368,-500.0,0.00013805,2]
[331664536,1720611040380,-500.0,0.00013805,2]
[331664538,1720611040392,-500.0,0.00013805,2]
[331664540,1720611040403,-500.0,0.00013805,2]
[331664542,1720611040413,-500.0,0.00013805,2]
[331664544,1720611040423,-500.0,0.00013805,2]
[331664546,1720611040433,-500.0,0.00013805,2]
[331664548,1720611040443,-500.0,0.00013805,2]
[331664550,1720611040452,-816.68,0.00013805,2]
[331664552,1720611040462,-500.0,0.00013805,2]
[331664554,1720611040472,-500.0,0.00013805,2]
[331664556,1720611040483,-34.88830349,0.00013805,2]
[331664559,1720611040497,-465.11169651,0.00013805,2]
[331664561,1720611040507,-259.36349328,0.00013805,2]
[331664564,1720611040529,-240.63650672,0.00013805,2]
[331664566,1720611040539,-500.0,0.00013805,2]
[331664568,1720611040549,-548.2,0.00013805,2]
[331664570,1720611040560,-500.0,0.00013805,2]
[331664572,1720611040570,-100.0462709,0.00013805,2]
[331664591,1720611044520,-399.9537291,0.00013805,2]
[331664592,1720611044530,-500.0,0.00013805,2]
[331664593,1720611044540,-10.5462709,0.00013805,2]
[331664622,1720611046107,-489.4537291,0.00013805,2]
[331664623,1720611046117,-80.5462709,0.00013805,2]
[331664624,1720611046541,-461.09047459,0.00013529,2]
[331664625,1720611046558,-290.91316098,0.00013529,2]
[331664629,1720611235222,526.92970599,9e-05,2]
[331664630,1720611235247,707.64505428,9e-05,2]
[331664631,1720611251503,2235.54367464,0.00011,2]
[331664643,1720611449581,150.0,0.00011199,2]
[331664644,1720611449605,211.07736391,0.00011199,2]
[331664645,1720611449628,337.00033501,0.00011199,2]
[331664646,1720611458625,318.51,0.00010953,2]
[331664647,1720611486507,570.0,0.00011199,2]
[331664648,1720611487965,582.00254044,0.00011199,2]
[331664649,1720611516437,600.0,0.00011199,2]
[331664650,1720611524599,1896.76564397,0.00011,2]
[331664651,1720611555552,150.0,0.00011199,2]
[331664652,1720611555576,5.07666321,0.00011199,2]
[331664653,1720611606050,144.92333679,0.00011199,2]
[331664654,1720611606075,18.37371715,0.00011199,2]
[331664655,1720611646322,155.65215554,0.00011199,2]
[331664656,1720611648929,29.33124671,0.00011199,2]
[331664657,1720611648951,317.42476107,0.00011199,2]
[331664658,1720611727231,155.66015683,0.00011199,2]
[331664659,1720611727516,158.47133143,0.00011199,2]
[331664660,1720611751247,2558.7347848,0.00011199,2]
[331664661,1720611774473,200.13048375,0.00011143,2]
[331664662,1720611779506,347.6184294,0.00011199,2]
[331664663,1720611784238,366.84956352,0.00011199,2]
[331664664,1720611851266,2559.23426054,0.00011199,2]
[331664665,1720611853832,516.746357,0.00011199,2]
[331664666,1720611859664,3760.1714846,0.00011199,2]
[331664667,1720611861943,1221.25721979,0.00011199,2]
[331664668,1720611870125,167.69,0.00010297,2]
[331664669,1720611891455,664.2587667,0.00011199,2]
[331664670,1720611891949,1221.25721979,0.00011199,2]
[331664671,1720611900233,181.21410071,0.00011199,2]
[331664672,1720611929388,450.0,0.00011199,2]
[331664673,1720611944257,2559.23426054,0.00010297,2]
[331664674,1720611985169,92706.65704689,0.00011199,2]
[331664675,1720611993408,1221.25721979,0.00011199,2]
[331664676,1720611994887,10110.57784651,0.00011199,2]
[331664677,1720612032508,1045.91690806,0.00011199,2]
[331664678,1720612036268,2557.73583332,0.00011199,2]
[331664679,1720612049727,395.21,0.00010953,2]
[331664680,1720612074431,544.69316985,0.00011199,2]
[331664681,1720612081539,304.268623,0.00011199,2]
[331664682,1720612101461,158.01353482,0.00011199,2]
[331664683,1720612113933,379.34033163,0.00011199,2]
[331664684,1720612113978,558.1563545,0.00010953,2]
[331664685,1720612115379,358.72880849,0.00011199,2]
[331664686,1720612128933,379.34033163,0.00011199,2]
[331664687,1720612134830,347.91425735,0.00011199,2]
[331664688,1720612137280,1982.86585133,0.00011199,2]
[331664689,1720612156145,356.38582122,0.00011199,2]
[331664690,1720612183124,310.0,0.00011199,2]
[331664691,1720612228010,7558.43415857,0.00011199,2]
[331664694,1720612231666,-1406.58183769,0.000118,2]
[331664695,1720612231675,-290.05974808,0.000118,2]
[331664696,1720612231684,-800.0,0.00012391,2]
[331664697,1720612231693,-722.04,0.00012554,2]
[331664698,1720612231703,-250.0,0.00012688,2]
[331664699,1720612231712,-250.0,0.00012697,2]
[331664700,1720612231722,-200.0,0.00012721,2]
[331664701,1720612231731,-150.0,0.00012849,2]
[331664702,1720612231743,-152.43,0.00012871,2]
[331664703,1720612231754,-168.65,0.00012871,2]
[331664704,1720612231764,-1847.41,0.00012974,2]
[331664705,1720612231773,-165.01,0.00013051,2]
[331664706,1720612231783,-388.2,0.00013051,2]
[331664707,1720612231792,-355.17,0.00013051,2]
[331664708,1720612231802,-165.01,0.00013051,2]
[331664709,1720612231813,-165.01,0.00013051,2]
[331664710,1720612231822,-355.17,0.00013051,2]
[331664711,1720612231832,-499.99,0.00013127,2]
[331664712,1720612231842,-614.59497202,0.00013128,2]
[331664713,1720612231853,-1907.33688277,0.00013128,2]
[331664714,1720612231863,-152.58,0.00013178,2]
[331664715,1720612231873,-348.24,0.00013178,2]
[331664716,1720612231883,-395.21,0.00013217,2]
[331664717,1720612231893,-355.17,0.00013278,2]
[331664718,1720612231902,-165.01,0.00013278,2]
[331664719,1720612231912,-11000.0825267,0.00013472,2]
[331664720,1720612231922,-784.51743016,0.00013472,2]
[331664721,1720612231933,-299.63364708,0.00013529,2]
[331664722,1720612231943,-155.0,0.00013529,2]
[331664723,1720612231953,-200.98370698,0.00013529,2]
[331664724,1720612231962,-300.16515746,0.00013543,2]
[331664725,1720612231972,-379.34033163,0.00013574,2]
[331664726,1720612231982,-358.72880849,0.00013574,2]
[331664727,1720612231991,-28042.73894807,0.00013574,2]
[331664728,1720612232001,-15430.31346419,0.00013574,2]
[331664730,1720612232010,-10818.79621191,0.00013574,2]
[331664735,1720612232606,-471.75317277,0.00013574,2]
[331664736,1720612233340,-5025.99430815,0.00013574,2]
[331664737,1720612233351,-1178.64872585,0.00013574,2]
[331664738,1720612233364,-1090.44291819,0.00013574,2]
[331664739,1720612233376,-110.65169088,0.00013574,2]
[331664740,1720612233387,-1340.26171979,0.00013574,2]
[331664741,1720612233397,-1221.25721979,0.00013574,2]
[331664742,1720612233407,-310.0,0.00013574,2]
[331664743,1720612233417,-1758.04132089,0.0001358,2]
[331664744,1720612233429,-3772.22943122,0.0001358,2]
[331664745,1720612233440,-508.47198714,0.0001358,2]
[331664746,1720612233452,-667.36237526,0.0001358,2]
[331664747,1720612233468,-1910.04659137,0.0001358,2]
[331664748,1720612233479,-5150.10159546,0.0001358,2]
[331664749,1720612233491,-673.43302,0.0001358,2]
[331664750,1720612233502,-8419.14754862,0.0001358,2]
[331664752,1720612237838,-549.9054872,0.00012314,2]
[331664753,1720612237848,-661.47545687,0.00013543,2]
[331664754,1720612237858,-8484.24355533,0.0001358,2]
[331664755,1720612237869,-20992.46196507,0.0001358,2]
[331664756,1720612237934,-2350.90986686,0.0001358,2]
[331664769,1720612239833,-54797.04316315,0.0001358,2]
[331664770,1720612239844,-16414.569,0.0001358,2]
[331664771,1720612239853,-8334.6724,0.00013605,2]
[331664772,1720612239863,-237.9,0.00013616,3]
[331664773,1720612239872,-419.00946884,0.00013642,2]
[331664774,1720612239883,-640.60204,0.0001369,2]
[331664775,1720612239892,-200.0,0.00013699,2]
[331664776,1720612239902,-284.53,0.00013699,2]
[331664777,1720612239912,-250.0,0.00013699,2]
[331664778,1720612239922,-500.0,0.00013704,2]
[331664779,1720612239932,-33250.0999,0.00013705,2]
[331664780,1720612239942,-2620.8455,0.00013705,2]
[331664781,1720612239952,-223.5152,0.00013705,2]
[331664782,1720612239962,-500.0,0.00013711,2]
[331664783,1720612239971,-500.0,0.00013711,2]
[331664784,1720612239980,-500.0,0.00013711,2]
[331664785,1720612239990,-500.0,0.00013711,2]
[331664786,1720612239999,-500.0,0.00013711,2]
[331664787,1720612240012,-546.27,0.00013711,2]
[331664788,1720612240024,-500.0,0.00013711,2]
[331664789,1720612240033,-500.0,0.00013711,2]
[331664790,1720612240043,-500.0,0.00013711,2]
[331664791,1720612240053,-500.0,0.00013711,2]
[331664792,1720612240063,-500.0,0.00013711,2]
[331664793,1720612240076,-500.0,0.00013711,2]
[331664794,1720612240086,-3652.01,0.00013711,2]
[331664795,1720612240095,-500.0,0.00013711,2]
[331664796,1720612240104,-500.0,0.00013711,2]
[331664797,1720612240113,-504.11,0.00013711,2]
[331664798,1720612240123,-500.0,0.00013711,2]
[331664799,1720612240132,-500.0,0.00013711,2]
[331664800,1720612240142,-500.0,0.00013711,2]
[331664801,1720612240152,-500.0,0.00013711,2]
[331664802,1720612240162,-500.0,0.00013711,2]
[331664804,1720612240171,-500.0,0.00013711,2]
[331664806,1720612240181,-500.0,0.00013711,2]
[331664808,1720612240190,-500.0,0.00013711,2]
[331664810,1720612240200,-500.0,0.00013712,2]
[331664812,1720612240209,-500.0,0.00013712,2]
[331664814,1720612240219,-500.0,0.00013712,2]
[331664816,1720612240228,-500.0,0.00013712,2]
[331664818,1720612240238,-466.41486139,0.00013712,2]
[331664820,1720612240247,-500.0,0.00013712,2]
[331664822,1720612240257,-500.0,0.00013712,2]
[331664824,1720612240266,-500.0,0.00013712,2]
[331664826,1720612240275,-500.0,0.00013712,2]
[331664828,1720612240284,-500.0,0.00013712,2]
[331664830,1720612240294,-500.0,0.00013712,2]
[331664832,1720612240304,-500.0,0.00013712,2]
[331664834,1720612240316,-500.0,0.00013712,2]
[331664836,1720612240326,-500.0,0.00013712,2]
[331664838,1720612240335,-500.0,0.00013712,2]
[331664840,1720612240344,-500.0,0.00013712,2]
[331664842,1720612240353,-500.0,0.00013712,2]
[331664844,1720612240363,-500.0,0.00013712,2]
[331664846,1720612240372,-500.0,0.00013712,2]
[331664848,1720612240381,-177.5,0.00013712,2]
[331664850,1720612240390,-500.0,0.00013712,2]
[331664852,1720612240400,-500.0,0.00013712,2]
[331664854,1720612240409,-500.0,0.00013712,2]
[331664856,1720612240419,-500.0,0.00013712,2]
[331664858,1720612240428,-500.0,0.00013712,2]
[331664860,1720612240437,-500.0,0.00013712,2]
[331664862,1720612240447,-500.0,0.00013712,2]
[331664864,1720612240456,-500.0,0.00013712,2]
[331664866,1720612240466,-703.17,0.00013712,2]
[331664868,1720612240475,-500.0,0.00013712,2]
[331664870,1720612240484,-500.0,0.00013712,2]
[331664872,1720612240494,-500.0,0.00013712,2]
[331664874,1720612240503,-500.0,0.00013712,2]
[331664876,1720612240512,-500.0,0.00013712,2]
[331664878,1720612240521,-561.05443401,0.00013712,2]
[331664880,1720612240530,-782.65,0.00013712,2]
[331664882,1720612240539,-500.0,0.00013712,2]
[331664884,1720612240549,-500.0,0.00013712,2]
[331664886,1720612240559,-500.0,0.00013712,2]
[331664888,1720612240571,-525.36,0.00013712,2]
[331664890,1720612240580,-500.0,0.00013712,2]
[331664891,1720612240589,-500.0,0.00013712,2]
[331664892,1720612240598,-500.0,0.00013712,2]
[331664893,1720612240607,-500.0,0.00013712,2]
[331664894,1720612240616,-500.0,0.00013712,2]
[331664895,1720612240625,-500.0,0.00013712,2]
[331664896,1720612240634,-500.0,0.00013712,2]
[331664897,1720612240644,-500.0,0.00013712,2]
[331664898,1720612240653,-500.0,0.00013712,2]
[331664899,1720612240662,-538.51,0.00013712,2]
[331664900,1720612240672,-553.14,0.00013712,2]
[331664901,1720612240681,-500.0,0.00013712,2]
[331664902,1720612240690,-500.0,0.00013712,2]
[331664903,1720612240699,-500.0,0.00013712,2]
[331664904,1720612240707,-500.0,0.00013712,2]
[331664905,1720612240716,-500.0,0.00013712,2]
[331664906,1720612240726,-500.0,0.00013712,2]
[331664907,1720612240735,-500.0,0.00013712,2]
[331664908,1720612240745,-500.0,0.00013712,2]
[331664909,1720612240754,-500.0,0.00013712,2]
[331664910,1720612240764,-500.0,0.00013712,2]
[331664911,1720612240773,-500.0,0.00013712,2]
[331664912,1720612240783,-500.0,0.00013712,2]
[331664913,1720612240792,-500.0,0.00013712,2]
[331664914,1720612240801,-500.0,0.00013712,2]
[331664915,1720612240810,-500.0,0.00013712,2]
[331664916,1720612240821,-500.0,0.00013712,2]
[331664917,1720612240831,-500.0,0.00013712,2]
[331664918,1720612240840,-500.0,0.00013712,2]
[331664919,1720612240849,-500.0,0.00013712,2]
[331664920,1720612240859,-500.0,0.00013712,2]
[331664921,1720612240868,-625.0,0.00013712,2]
[331664922,1720612240878,-500.0,0.00013712,2]
[331664923,1720612240887,-500.0,0.00013712,2]
[331664924,1720612240896,-500.0,0.00013712,2]
[331664925,1720612241258,-547.61,0.00013712,2]
[331664926,1720612241268,-500.0,0.00013712,2]
[331664927,1720612241278,-500.0,0.00013712,2]
[331664928,1720612241287,-1300.56,0.00013712,2]
[331664929,1720612241296,-500.0,0.00013712,2]
[331664930,1720612241305,-500.0,0.00013712,2]
[331664931,1720612241315,-500.0,0.00013712,2]
[331664932,1720612241324,-500.0,0.00013712,2]
[331664933,1720612241334,-521.11,0.00013712,2]
[331664934,1720612241343,-500.0,0.00013712,2]
[331664935,1720612241352,-500.0,0.00013712,2]
[331664936,1720612241362,-500.0,0.00013712,2]
[331664937,1720612241372,-500.0,0.00013712,2]
[331664938,1720612241381,-500.0,0.00013712,2]
[331664939,1720612241391,-500.0,0.00013712,2]
[331664940,1720612241401,-622.02,0.00013712,2]
[331664941,1720612241410,-500.0,0.00013712,2]
[331664942,1720612241419,-500.0,0.00013712,2]
[331664943,1720612241429,-500.0,0.00013712,2]
[331664944,1720612241439,-500.0,0.00013712,2]
[331664945,1720612241448,-500.0,0.00013712,2]
[331664946,1720612241458,-500.0,0.00013712,2]
[331664947,1720612241467,-500.0,0.00013712,2]
[331664948,1720612241477,-1234.1,0.00013712,2]
[331664949,1720612241486,-500.0,0.00013712,2]
[331664950,1720612241497,-2072.94,0.00013712,2]
[331664951,1720612241507,-500.0,0.00013712,2]
[331664952,1720612241517,-500.0,0.00013712,2]
[331664953,1720612241526,-500.0,0.00013712,2]
[331664954,1720612241536,-500.0,0.00013712,2]
[331664955,1720612241545,-500.0,0.00013712,2]
[331664956,1720612241555,-1032.39,0.00013712,2]
[331664957,1720612241565,-500.0,0.00013712,2]
[331664958,1720612241574,-500.0,0.00013712,2]
[331664959,1720612241583,-787.63,0.00013712,2]
[331664960,1720612241591,-521.24,0.00013712,2]
[331664961,1720612241601,-500.0,0.00013712,2]
[331664962,1720612241610,-500.0,0.00013712,2]
[331664963,1720612241619,-297.02864119,0.00013712,2]
[331664964,1720612241628,-500.0,0.00013712,2]
[331664965,1720612241637,-500.0,0.00013712,2]
[331664966,1720612241646,-1178.74,0.00013712,2]
[331664967,1720612241655,-786.66,0.00013712,2]
[331664968,1720612241664,-500.0,0.00013712,2]
[331664969,1720612241673,-500.0,0.00013712,2]
[331664970,1720612241683,-500.0,0.00013712,2]
[331664971,1720612241694,-500.0,0.00013712,2]
[331664972,1720612241705,-500.0,0.00013712,2]
[331664973,1720612241716,-500.0,0.00013712,2]
[331664974,1720612241726,-500.0,0.00013712,2]
[331664975,1720612241736,-500.0,0.00013712,2]
[331664976,1720612241745,-624.46,0.00013712,2]
[331664977,1720612241755,-500.0,0.00013712,2]
[331664978,1720612241765,-500.0,0.00013712,2]
[331664979,1720612241775,-523.41,0.00013712,2]
[331664980,1720612241784,-625.92,0.00013712,2]
[331664981,1720612241794,-500.0,0.00013712,2]
[331664982,1720612241804,-500.0,0.00013712,2]
[331664983,1720612241813,-500.0,0.00013712,2]
[331664984,1720612241823,-500.0,0.00013712,2]
[331664985,1720612241832,-681.45,0.00013712,2]
[331664986,1720612241842,-683.89,0.00013712,2]
[331664987,1720612241852,-500.0,0.00013712,2]
[331664988,1720612241862,-500.0,0.00013712,2]
[331664989,1720612241873,-500.0,0.00013712,2]
[331664990,1720612241882,-500.0,0.00013712,2]
[331664991,1720612241892,-500.0,0.00013712,2]
[331664992,1720612241903,-678.86,0.00013712,2]
[331664993,1720612241913,-500.0,0.00013712,2]
[331664994,1720612241923,-500.05,0.00013712,2]
[331664995,1720612241933,-500.0,0.00013712,2]
[331664996,1720612241942,-500.0,0.00013712,2]
[331664997,1720612241952,-500.0,0.00013712,2]
[331664998,1720612241962,-621.96081631,0.00013712,2]
[331664999,1720612241972,-500.0,0.00013712,2]
[331665000,1720612241982,-500.0,0.00013712,2]
[331665001,1720612241992,-500.0,0.00013712,2]
[331665002,1720612242002,-500.0,0.00013712,2]
[331665003,1720612242012,-500.0,0.00013712,2]
[331665004,1720612242022,-521.12,0.00013712,2]
[331665005,1720612242032,-500.0,0.00013712,2]
[331665006,1720612242043,-500.0,0.00013712,2]
[331665007,1720612242052,-500.0,0.00013712,2]
[331665008,1720612242062,-500.0,0.00013712,2]
[331665009,1720612242074,-500.0,0.00013712,2]
[331665010,1720612242083,-500.0,0.00013712,2]
[331665011,1720612242092,-500.0,0.00013712,2]
[331665012,1720612242101,-500.0,0.00013712,2]
[331665013,1720612242110,-500.0,0.00013712,2]
[331665014,1720612242120,-500.0,0.00013712,2]
[331665015,1720612242130,-614.54,0.00013712,2]
[331665016,1720612242139,-500.0,0.00013712,2]
[331665017,1720612242148,-500.0,0.00013712,2]
[331665018,1720612242158,-500.0,0.00013712,2]
[331665019,1720612242170,-500.0,0.00013712,2]
[331665020,1720612242180,-891.73,0.00013712,2]
[331665021,1720612242190,-500.0,0.00013712,2]
[331665022,1720612242201,-500.0,0.00013712,2]
[331665023,1720612242211,-500.0,0.00013712,2]
[331665024,1720612242221,-500.0,0.00013712,2]
[331665025,1720612242231,-246.85543478,0.00013712,2]
[331665026,1720612242254,-253.14456522,0.00013712,2]